fUST/lending_fUST_20250609
["ID","MTS","AMOUNT","RATE_DAILY","PERIOD"]
[365075062,1749443759610,150.0,0.00017746,2]
[365075063,1749443836017,150.0,0.00017909,2]
[365075064,1749443912547,150.0,0.00017756,2]
[365075065,1749443989397,150.0,0.00017746,2]
[365075066,1749444069465,161.66,0.00017673,2]
[365075067,1749444148790,159.6,0.00017679,2]
[365075069,1749444211726,150.0,0.0001799,2]
[365075070,1749444230397,127.50018251,0.00017699,2]
[365075071,1749444230424,31.97981749,0.00017699,2]
[365075073,1749444311115,157.45,0.00017686,2]
[365075074,1749444392279,168.74,0.00017703,2]
[365075077,1749444473852,205.14,0.00017646,2]
[365075078,1749444555943,202.53,0.00017603,2]
[365075079,1749444556330,765.6877635,0.00017887,2]
[365075111,1749444632207,-2855.9744329,0.00018026,2]
[365075113,1749444632217,-197.313269,0.00018051,2]
[365075116,1749444632227,-1200.0,0.00018153,2]
[365075118,1749444632237,-300.0,0.00018154,2]
[365075120,1749444632247,-300.0,0.00018154,2]
[365075122,1749444632256,-300.0,0.00018154,2]
[365075124,1749444632266,-300.0,0.00018154,2]
[365075126,1749444632275,-300.0,0.00018154,2]
[365075128,1749444632285,-14813.8941479,0.00018155,2]
[365075130,1749444632295,-150.0,0.000189,2]
[365075132,1749444632304,-1264.5901287,0.000189,2]
[365075134,1749444632314,-9952.57275913,0.00019,3]
[365075136,1749444632323,-254.07190669,0.00019007,2]
[365075138,1749444632332,-46787.65141065,0.00019072,2]
[365075140,1749444632342,-3014.33528524,0.00019078,2]
[365075142,1749444632352,-500.0,0.00019106,2]
[365075144,1749444632361,-1264.59012865,0.00019107,2]
[365075146,1749444632372,-156.587,0.00019166,2]
[365075148,1749444632381,-501.17622547,0.00019173,2]
[365075150,1749444632391,-504.39881123,0.00019173,2]
[365075152,1749444632400,-500.0,0.00019173,2]
[365075154,1749444632411,-191.05200097,0.00019173,2]
[365075156,1749444632421,-500.0,0.00019173,2]
[365075158,1749444632431,-505.29604467,0.00019173,2]
[365075160,1749444632441,-501.13706826,0.00019173,2]
[365075162,1749444632451,-500.0,0.00019173,2]
[365075164,1749444632460,-155.47771843,0.00019173,2]
[365075166,1749444632469,-504.54985955,0.00019173,2]
[365075168,1749444632479,-500.0,0.00019173,2]
[365075170,1749444632489,-346.98370009,0.00019173,2]
[365075172,1749444632498,-160.0,0.00019177,2]
[365075174,1749444632508,-500.0,0.00019177,2]
[365075177,1749444632518,-500.0,0.00019177,2]
[365075181,1749444632528,-500.0,0.00019177,2]
[365075184,1749444632538,-500.0,0.00019177,2]
[365075187,1749444632547,-500.0,0.00019177,2]
[365075189,1749444632557,-221.07790202,0.00019177,2]
[365075191,1749444632567,-298.32754656,0.00019177,2]
[365075193,1749444632576,-500.0,0.00019177,2]
[365075196,1749444632587,-500.0,0.00019177,2]
[365075198,1749444632596,-500.0,0.00019177,2]
[365075200,1749444632605,-500.0,0.00019177,2]
[365075202,1749444632614,-500.0,0.00019177,2]
[365075204,1749444632624,-500.0,0.00019177,2]
[365075206,1749444632633,-539.49826397,0.00019177,2]
[365075208,1749444632643,-500.0,0.00019177,2]
[365075210,1749444632652,-500.0,0.00019177,2]
[365075212,1749444632662,-500.0,0.00019177,2]
[365075214,1749444632672,-500.0,0.00019177,2]
[365075216,1749444632682,-500.0,0.00019177,2]
[365075218,1749444632691,-500.0,0.00019177,2]
[365075220,1749444632701,-500.0,0.00019177,2]
[365075222,1749444632710,-500.0,0.00019177,2]
[365075224,1749444632719,-500.0,0.00019177,2]
[365075226,1749444632729,-342.67559155,0.00019177,2]
[365075228,1749444632739,-500.0,0.00019177,2]
[365075230,1749444632749,-500.0,0.00019177,2]
[365075232,1749444632759,-500.0,0.00019177,2]
[365075234,1749444632770,-200.0,0.00019177,2]
[365075236,1749444632780,-500.0,0.00019177,2]
[365075238,1749444632789,-430.0,0.00019178,2]
[365075241,1749444632799,-430.0,0.00019178,2]
[365075243,1749444632808,-405.16396434,0.00019178,2]
[365075245,1749444632818,-430.0,0.00019178,2]
[365075247,1749444632827,-430.0,0.00019178,2]
[365075248,1749444632836,-440.0,0.00019178,2]
[365075251,1749444632846,-450.0,0.00019178,2]
[365075253,1749444632855,-440.0,0.00019178,2]
[365075255,1749444632865,-440.0,0.00019178,2]
[365075257,1749444632875,-432.59658442,0.00019178,2]
[365075259,1749444632884,-430.0,0.00019178,2]
[365075261,1749444632894,-430.0,0.00019178,2]
[365075263,1749444632904,-440.0,0.00019178,2]
[365075265,1749444632913,-167.1776934,0.00019178,2]
[365075267,1749444632923,-231.58930105,0.00019178,2]
[365075269,1749444632932,-430.0,0.00019178,2]
[365075271,1749444632942,-440.23374562,0.00019178,2]
[365075273,1749444632951,-434.5600328,0.00019178,2]
[365075275,1749444632961,-440.0,0.00019178,2]
[365075277,1749444632971,-367.19955597,0.00019178,2]
[365075279,1749444632981,-430.0,0.00019178,2]
[365075281,1749444632991,-403.1264626,0.00019178,2]
[365075283,1749444633000,-440.0,0.00019178,2]
[365075285,1749444633009,-430.0,0.00019178,2]
[365075287,1749444633020,-440.0,0.00019178,2]
[365075289,1749444633030,-431.05808427,0.00019178,2]
[365075291,1749444633039,-436.37952054,0.00019178,2]
[365075293,1749444633050,-430.0,0.00019178,2]
[365075296,1749444633060,-433.14065847,0.00019178,2]
[365075297,1749444633069,-432.82338444,0.00019178,2]
[365075300,1749444633080,-346.28018633,0.00019178,2]
[365075302,1749444633090,-500.0,0.00019178,2]
[365075304,1749444633100,-500.0,0.00019178,2]
[365075306,1749444633111,-536.03248985,0.00019178,2]
[365075308,1749444633121,-440.0,0.00019178,2]
[365075310,1749444633134,-367.40567631,0.00019178,2]
[365075312,1749444633143,-454.50277861,0.00019178,2]
[365075314,1749444633153,-430.0,0.00019178,2]
[365075316,1749444633163,-557.72966247,0.00019178,2]
[365075318,1749444633173,-436.79842344,0.00019178,2]
[365075320,1749444633182,-440.0,0.00019178,2]
[365075322,1749444633192,-440.0,0.00019178,2]
[365075324,1749444633202,-430.0,0.00019178,2]
[365075326,1749444633211,-432.75505077,0.00019178,2]
[365075328,1749444633221,-440.0,0.00019178,2]
[365075330,1749444633231,-575.717177,0.00019178,2]
[365075332,1749444633241,-430.0,0.00019178,2]
[365075334,1749444633251,-430.0,0.00019178,2]
[365075336,1749444633261,-440.0,0.00019178,2]
[365075338,1749444633270,-423.47210433,0.00019178,2]
[365075341,1749444633280,-435.64573783,0.00019178,2]
[365075343,1749444633289,-440.0,0.00019178,2]
[365075345,1749444633300,-430.0,0.00019178,2]
[365075347,1749444633309,-431.14606688,0.00019178,2]
[365075348,1749444633319,-266.52107975,0.00019178,2]
[365075349,1749444633328,-440.0,0.00019178,2]
[365075350,1749444633338,-440.0,0.00019178,2]
[365075351,1749444633348,-440.0,0.00019178,2]
[365075352,1749444633368,-430.0,0.00019178,2]
[365075353,1749444633381,-434.62908407,0.00019178,2]
[365075354,1749444633391,-440.0,0.00019178,2]
[365075355,1749444633402,-559.6081218,0.00019178,2]
[365075356,1749444633412,-377.95587204,0.00019178,2]
[365075357,1749444633423,-440.0,0.00019178,2]
[365075358,1749444633436,-440.0,0.00019178,2]
[365075359,1749444633446,-440.0,0.00019178,2]
[365075360,1749444633456,-440.0,0.00019178,2]
[365075361,1749444633466,-440.0,0.00019178,2]
[365075362,1749444633477,-440.0,0.00019178,2]
[365075363,1749444633489,-434.43761625,0.00019178,2]
[365075364,1749444633499,-446.0007027,0.00019178,2]
[365075366,1749444633510,-430.0,0.00019178,2]
[365075368,1749444633521,-430.0,0.00019178,2]
[365075370,1749444633531,-440.0,0.00019178,2]
[365075372,1749444633541,-410.5081298,0.00019178,2]
[365075374,1749444633551,-348.33069632,0.00019178,2]
[365075376,1749444633563,-440.0,0.00019178,2]
[365075378,1749444633573,-430.0,0.00019178,2]
[365075380,1749444633583,-442.89870059,0.00019178,2]
[365075383,1749444633593,-430.0,0.00019178,2]
[365075384,1749444633602,-440.0,0.00019178,2]
[365075387,1749444633612,-178.08582138,0.00019178,2]
[365075388,1749444633622,-440.0,0.00019178,2]
[365075406,1749444633791,-430.0,0.00019178,2]
[365075408,1749444633802,-430.0,0.00019178,2]
[365075411,1749444633812,-440.0,0.00019178,2]
[365075413,1749444633822,-442.54640573,0.00019178,2]
[365075415,1749444633832,-440.0,0.00019178,2]
[365075416,1749444633842,-440.0,0.00019178,2]
[365075419,1749444633851,-440.0,0.00019178,2]
[365075421,1749444633861,-207.41493827,0.00019178,2]
[365075423,1749444633870,-440.0,0.00019178,2]
[365075425,1749444633880,-440.0,0.00019178,2]
[365075427,1749444633891,-440.0,0.00019178,2]
[365075429,1749444633901,-490.0,0.00019178,2]
[365075431,1749444633910,-440.0,0.00019178,2]
[365075433,1749444633920,-500.0,0.00019178,2]
[365075435,1749444633930,-500.0,0.00019178,2]
[365075437,1749444633945,-500.0,0.00019178,2]
[365075439,1749444633955,-500.0,0.00019178,2]
[365075442,1749444633965,-500.0,0.00019178,2]
[365075444,1749444633975,-440.0,0.00019178,2]
[365075446,1749444633984,-430.0,0.00019178,2]
[365075448,1749444633995,-440.0,0.00019178,2]
[365075450,1749444634005,-403.24618801,0.00019178,2]
[365075452,1749444634016,-430.0,0.00019178,2]
[365075454,1749444634025,-430.0,0.00019178,2]
[365075456,1749444634036,-430.0,0.00019178,2]
[365075458,1749444634045,-440.0,0.00019178,2]
[365075460,1749444634055,-440.0,0.00019178,2]
[365075462,1749444634065,-430.0,0.00019178,2]
[365075464,1749444634074,-440.0,0.00019178,2]
[365075466,1749444634084,-430.0,0.00019178,2]
[365075468,1749444634094,-430.0,0.00019178,2]
[365075470,1749444634104,-430.0,0.00019178,2]
[365075472,1749444634114,-430.0,0.00019178,2]
[365075474,1749444634123,-430.0,0.00019178,2]
[365075476,1749444634133,-430.0,0.00019178,2]
[365075478,1749444634143,-430.0,0.00019178,2]
[365075480,1749444634153,-440.0,0.00019178,2]
[365075482,1749444634162,-430.0,0.00019178,2]
[365075485,1749444634174,-440.0,0.00019178,2]
[365075487,1749444634183,-440.0,0.00019178,2]
[365075489,1749444634193,-506.31210021,0.00019178,2]
[365075491,1749444634202,-440.0,0.00019178,2]
[365075493,1749444634212,-445.58719657,0.00019178,2]
[365075495,1749444634221,-440.0,0.00019178,2]
[365075497,1749444634233,-440.0,0.00019178,2]
[365075499,1749444634243,-440.0,0.00019178,2]
[365075501,1749444634253,-430.0,0.00019178,2]
[365075503,1749444634262,-430.0,0.00019178,2]
[365075505,1749444634272,-440.0,0.00019178,2]
[365075507,1749444634282,-245.58447487,0.00019178,2]
[365075509,1749444634291,-430.0,0.00019178,2]
[365075511,1749444634301,-430.0,0.00019178,2]
[365075513,1749444634311,-440.0,0.00019178,2]
[365075515,1749444634320,-440.0,0.00019178,2]
[365075517,1749444634330,-440.0,0.00019178,2]
[365075520,1749444634339,-440.0,0.00019178,2]
[365075522,1749444634350,-440.0,0.00019178,2]
[365075524,1749444634360,-440.0,0.00019178,2]
[365075526,1749444634370,-470.0,0.00019178,2]
[365075528,1749444634380,-430.0,0.00019178,2]
[365075530,1749444634389,-440.0,0.00019178,2]
[365075532,1749444634400,-430.0,0.00019178,2]
[365075534,1749444634409,-436.85540727,0.00019178,2]
[365075536,1749444634419,-440.0,0.00019178,2]
[365075538,1749444634428,-500.0,0.00019178,2]
[365075540,1749444634438,-647.68912942,0.00019178,2]
[365075542,1749444634451,-397.76002389,0.00019178,2]
[365075544,1749444634461,-440.0,0.00019178,2]
[365075546,1749444634471,-440.0,0.00019178,2]
[365075548,1749444634481,-440.0,0.00019178,2]
[365075551,1749444634491,-440.0,0.00019178,2]
[365075553,1749444634500,-430.0,0.00019178,2]
[365075555,1749444634510,-204.72749902,0.00019178,2]
[365075557,1749444634520,-440.0,0.00019178,2]
[365075559,1749444634530,-430.0,0.00019178,2]
[365075561,1749444634540,-440.0,0.00019178,2]
[365075562,1749444634549,-440.0,0.00019178,2]
[365075565,1749444634562,-420.0,0.00019178,2]
[365075567,1749444634572,-440.0,0.00019178,2]
[365075569,1749444634582,-430.0,0.00019178,2]
[365075571,1749444634591,-440.0,0.00019178,2]
[365075573,1749444634602,-440.0,0.00019178,2]
[365075575,1749444634611,-440.0,0.00019178,2]
[365075577,1749444634622,-435.72635558,0.00019178,2]
[365075579,1749444634631,-440.0,0.00019178,2]
[365075581,1749444634641,-440.0,0.00019178,2]
[365075583,1749444634651,-439.3527542,0.00019178,2]
[365075585,1749444634660,-440.0,0.00019178,2]
[365075587,1749444634670,-440.0,0.00019178,2]
[365075589,1749444634680,-440.0,0.00019178,2]
[365075591,1749444634689,-440.0,0.00019178,2]
[365075593,1749444634699,-370.0,0.00019178,2]
[365075595,1749444634708,-436.12224117,0.00019178,2]
[365075597,1749444634718,-430.0,0.00019178,2]
[365075599,1749444634727,-430.0,0.00019178,2]
[365075602,1749444634737,-163.12026565,0.00019178,2]
[365075604,1749444634747,-440.0,0.00019178,2]
[365075606,1749444634757,-430.0,0.00019178,2]
[365075608,1749444634767,-430.0,0.00019178,2]
[365075610,1749444634777,-430.0,0.00019178,2]
[365075612,1749444634786,-440.0,0.00019178,2]
[365075614,1749444634796,-440.0,0.00019178,2]
[365075616,1749444634806,-440.0,0.00019178,2]
[365075618,1749444634816,-440.0,0.00019178,2]
[365075620,1749444634825,-440.0,0.00019178,2]
[365075622,1749444634835,-440.0,0.00019178,2]
[365075624,1749444634845,-440.0,0.00019178,2]
[365075626,1749444634855,-440.0,0.00019178,2]
[365075628,1749444634865,-372.95431868,0.00019178,2]
[365075630,1749444634875,-440.0,0.00019178,2]
[365075633,1749444634886,-440.0,0.00019178,2]
[365075635,1749444634896,-430.0,0.00019178,2]
[365075637,1749444634906,-430.0,0.00019178,2]
[365075639,1749444634916,-430.0,0.00019178,2]
[365075641,1749444634926,-450.91085927,0.00019178,2]
[365075643,1749444634936,-249.88320416,0.00019178,2]
[365075645,1749444634946,-1000.0,0.00019178,2]
[365075647,1749444634956,-440.0,0.00019178,2]
[365075649,1749444634965,-223.33281384,0.00019178,2]
[365075651,1749444634975,-433.19812214,0.00019178,2]
[365075653,1749444634985,-440.0,0.00019178,2]
[365075655,1749444634994,-440.0,0.00019178,2]
[365075657,1749444635004,-440.0,0.00019178,2]
[365075659,1749444635014,-430.0,0.00019178,2]
[365075661,1749444635023,-440.0,0.00019178,2]
[365075664,1749444635033,-440.0,0.00019178,2]
[365075666,1749444635042,-430.0,0.00019178,2]
[365075668,1749444635052,-440.0,0.00019178,2]
[365075670,1749444635062,-440.0,0.00019178,2]
[365075672,1749444635072,-440.0,0.00019178,2]
[365075674,1749444635082,-440.0,0.00019178,2]
[365075676,1749444635091,-440.0,0.00019178,2]
[365075678,1749444635100,-455.85448324,0.00019178,2]
[365075680,1749444635111,-443.41047663,0.00019178,2]
[365075682,1749444635120,-440.0,0.00019178,2]
[365075684,1749444635130,-440.0,0.00019178,2]
[365075686,1749444635139,-440.0,0.00019178,2]
[365075688,1749444635150,-440.0,0.00019178,2]
[365075690,1749444635160,-440.0,0.00019178,2]
[365075692,1749444635170,-451.29038222,0.00019178,2]
[365075694,1749444635180,-440.0,0.00019178,2]
[365075697,1749444635189,-435.18885065,0.00019178,2]
[365075699,1749444635200,-440.0,0.00019178,2]
[365075701,1749444635210,-440.0,0.00019178,2]
[365075703,1749444635219,-404.99242233,0.00019178,2]
[365075705,1749444635228,-440.0,0.00019178,2]
[365075707,1749444635238,-440.0,0.00019178,2]
[365075709,1749444635248,-440.0,0.00019178,2]
[365075711,1749444635258,-440.0,0.00019178,2]
[365075713,1749444635268,-430.0,0.00019178,2]
[365075715,1749444635279,-440.0,0.00019178,2]
[365075717,1749444635288,-440.0,0.00019178,2]
[365075720,1749444635298,-440.0,0.00019178,2]
[365075722,1749444635307,-440.0,0.00019178,2]
[365075724,1749444635318,-440.0,0.00019178,2]
[365075726,1749444635327,-440.0,0.00019178,2]
[365075728,1749444635337,-440.0,0.00019178,2]
[365075730,1749444635346,-440.0,0.00019178,2]
[365075732,1749444635356,-440.0,0.00019178,2]
[365075734,1749444635367,-440.0,0.00019178,2]
[365075736,1749444635376,-440.0,0.00019178,2]
[365075738,1749444635387,-500.0,0.00019178,2]
[365075740,1749444635396,-419.88349549,0.00019178,2]
[365075742,1749444635406,-440.0,0.00019178,2]
[365075744,1749444635416,-440.0,0.00019178,2]
[365075746,1749444635426,-440.0,0.00019178,2]
[365075748,1749444635435,-440.0,0.00019178,2]
[365075752,1749444635459,-424.57443522,0.00019178,2]
[365075754,1749444635470,-440.0,0.00019178,2]
[365075756,1749444635480,-430.0,0.00019178,2]
[365075758,1749444635491,-216.98268075,0.00019178,2]
[365075760,1749444635502,-435.71126695,0.00019178,2]
[365075762,1749444635513,-440.0,0.00019178,2]
[365075764,1749444635523,-440.0,0.00019178,2]
[365075766,1749444635534,-440.0,0.00019178,2]
[365075768,1749444635545,-168.41300257,0.00019178,2]
[365075771,1749444635555,-344.28995489,0.00019178,2]
[365075773,1749444635566,-430.0,0.00019178,2]
[365075775,1749444635577,-440.0,0.00019178,2]
[365075777,1749444635587,-440.0,0.00019178,2]
[365075779,1749444635597,-588.6544117,0.00019178,2]
[365075781,1749444635607,-440.0,0.00019178,2]
[365075783,1749444635618,-440.0,0.00019178,2]
[365075785,1749444635628,-440.0,0.00019178,2]
[365075787,1749444635638,-440.0,0.00019178,2]
[365075790,1749444635648,-452.26077378,0.00019178,2]
[365075792,1749444635658,-440.0,0.00019178,2]
[365075794,1749444635668,-440.0,0.00019178,2]
[365075796,1749444635679,-440.0,0.00019178,2]
[365075798,1749444635689,-440.0,0.00019178,2]
[365075800,1749444635699,-439.36262788,0.00019178,2]
[365075802,1749444635710,-440.0,0.00019178,2]
[365075804,1749444635720,-440.0,0.00019178,2]
[365075806,1749444635730,-440.0,0.00019178,2]
[365075808,1749444635740,-440.0,0.00019178,2]
[365075810,1749444635750,-440.0,0.00019178,2]
[365075812,1749444635760,-445.82414822,0.00019178,2]
[365075814,1749444635770,-263.57478292,0.00019178,2]
[365075817,1749444635781,-180.88067471,0.00019178,2]
[365075819,1749444635790,-440.0,0.00019178,2]
[365075821,1749444635799,-440.0,0.00019178,2]
[365075823,1749444635809,-325.09390242,0.00019178,2]
[365075825,1749444635820,-440.0,0.00019178,2]
[365075827,1749444635830,-405.30714718,0.00019178,2]
[365075829,1749444635840,-504.87557463,0.00019178,2]
[365075831,1749444635849,-440.0,0.00019178,2]
[365075833,1749444635859,-404.37876923,0.00019178,2]
[365075835,1749444635869,-440.0,0.00019178,2]
[365075837,1749444635879,-440.0,0.00019178,2]
[365075840,1749444635889,-440.0,0.00019178,2]
[365075842,1749444635899,-440.0,0.00019178,2]
[365075844,1749444635909,-440.0,0.00019178,2]
[365075846,1749444635919,-453.07188305,0.00019178,2]
[365075848,1749444635929,-440.0,0.00019178,2]
[365075850,1749444635940,-440.0,0.00019178,2]
[365075852,1749444635949,-440.0,0.00019178,2]
[365075854,1749444635959,-440.0,0.00019178,2]
[365075856,1749444635969,-440.0,0.00019178,2]
[365075858,1749444635979,-440.0,0.00019178,2]
[365075860,1749444635988,-440.0,0.00019178,2]
[365075862,1749444635998,-440.0,0.00019178,2]
[365075864,1749444636008,-440.0,0.00019178,2]
[365075866,1749444636018,-504.15887617,0.00019178,2]
[365075868,1749444636028,-440.0,0.00019178,2]
[365075871,1749444636038,-440.0,0.00019178,2]
[365075873,1749444636048,-440.0,0.00019178,2]
[365075875,1749444636062,-291.76402422,0.00019178,2]
[365075877,1749444636072,-440.0,0.00019178,2]
[365075879,1749444636082,-440.0,0.00019178,2]
[365075881,1749444636092,-440.0,0.00019178,2]
[365075884,1749444636102,-812.26,0.00019178,2]
[365075886,1749444636113,-440.0,0.00019178,2]
[365075888,1749444636122,-440.0,0.00019178,2]
[365075890,1749444636132,-440.0,0.00019178,2]
[365075892,1749444636142,-254.56665283,0.00019178,2]
[365075894,1749444636152,-465.39677554,0.00019178,2]
[365075896,1749444636162,-440.0,0.00019178,2]
[365075898,1749444636172,-694.74,0.00019178,2]
[365075900,1749444636182,-440.0,0.00019178,2]
[365075902,1749444636192,-440.0,0.00019178,2]
[365075904,1749444636202,-440.0,0.00019178,2]
[365075906,1749444636213,-440.0,0.00019178,2]
[365075909,1749444636223,-440.0,0.00019178,2]
[365075911,1749444636233,-440.0,0.00019178,2]
[365075913,1749444636243,-436.63219372,0.00019178,2]
[365075915,1749444636254,-452.24656411,0.00019178,2]
[365075917,1749444636265,-440.0,0.00019178,2]
[365075919,1749444636274,-432.57227565,0.00019178,2]
[365075921,1749444636284,-403.1484232,0.00019178,2]
[365075923,1749444636294,-440.0,0.00019178,2]
[365075925,1749444636305,-440.0,0.00019178,2]
[365075928,1749444636314,-440.0,0.00019178,2]
[365075930,1749444636324,-440.0,0.00019178,2]
[365075931,1749444636333,-440.0,0.00019178,2]
[365075933,1749444636343,-362.17097314,0.00019178,2]
[365075936,1749444636353,-440.0,0.00019178,2]
[365075953,1749444636494,-440.0,0.00019178,2]
[365075955,1749444636525,-452.15522675,0.00019178,2]
[365075957,1749444636536,-430.0,0.00019178,2]
[365075960,1749444636546,-440.0,0.00019178,2]
[365075962,1749444636555,-440.0,0.00019178,2]
[365075964,1749444636564,-561.46362119,0.00019178,2]
[365075966,1749444636574,-440.0,0.00019178,2]
[365075968,1749444636584,-438.99273223,0.00019178,2]
[365075970,1749444636595,-455.27610049,0.00019178,2]
[365075972,1749444636604,-490.48220401,0.00019178,2]
[365075974,1749444636616,-440.0,0.00019178,2]
[365075976,1749444636629,-440.0,0.00019178,2]
[365075978,1749444636639,-430.0,0.00019178,2]
[365075980,1749444636649,-440.0,0.00019178,2]
[365075982,1749444636659,-450.0,0.00019178,2]
[365075984,1749444636669,-350.0,0.00019178,2]
[365075986,1749444636679,-431.64170506,0.00019178,2]
[365075988,1749444636690,-440.0,0.00019178,2]
[365075991,1749444636702,-440.0,0.00019178,2]
[365075992,1749444636711,-448.4282496,0.00019178,2]
[365075995,1749444636722,-440.0,0.00019178,2]
[365075997,1749444636731,-440.0,0.00019178,2]
[365075999,1749444636741,-440.0,0.00019178,2]
[365076001,1749444636750,-412.17394564,0.00019178,2]
[365076003,1749444636760,-440.0,0.00019178,2]
[365076005,1749444636771,-440.0,0.00019178,2]
[365076007,1749444636781,-1161.26,0.00019178,2]
[365076009,1749444636791,-440.0,0.00019178,2]
[365076011,1749444636801,-433.633589,0.00019178,2]
[365076013,1749444636810,-440.0,0.00019178,2]
[365076015,1749444636820,-440.0,0.00019178,2]
[365076017,1749444636830,-431.29772155,0.00019178,2]
[365076019,1749444636841,-440.0,0.00019178,2]
[365076021,1749444636851,-440.0,0.00019178,2]
[365076023,1749444636860,-440.0,0.00019178,2]
[365076025,1749444636871,-3482.78,0.00019178,2]
[365076027,1749444636880,-3482.78,0.00019178,2]
[365076029,1749444636890,-3482.78,0.00019178,2]
[365076031,1749444636902,-3482.78,0.00019178,2]
[365076033,1749444636912,-3482.78,0.00019178,2]
[365076035,1749444636922,-3482.78,0.00019178,2]
[365076038,1749444636932,-3482.78,0.00019178,2]
[365076040,1749444636941,-3482.78,0.00019178,2]
[365076042,1749444636951,-441.26854018,0.00019178,2]
[365076044,1749444636961,-440.0,0.00019178,2]
[365076046,1749444636970,-3482.78,0.00019178,2]
[365076048,1749444636979,-3482.78,0.00019178,2]
[365076050,1749444636989,-3482.78,0.00019178,2]
[365076052,1749444636998,-3482.78,0.00019178,2]
[365076054,1749444637010,-430.0,0.00019178,2]
[365076056,1749444637021,-452.64615683,0.00019178,2]
[365076058,1749444637031,-3482.78,0.00019178,2]
[365076060,1749444637041,-3482.78,0.00019178,2]
[365076062,1749444637051,-440.0,0.00019178,2]
[365076064,1749444637061,-440.0,0.00019178,2]
[365076066,1749444637071,-461.27749013,0.00019178,2]
[365076068,1749444637080,-440.0,0.00019178,2]
[365076070,1749444637089,-440.0,0.00019178,2]
[365076072,1749444637099,-459.35411922,0.00019178,2]
[365076074,1749444637108,-440.0,0.00019178,2]
[365076076,1749444637118,-440.0,0.00019178,2]
[365076078,1749444637127,-440.0,0.00019178,2]
[365076080,1749444637137,-1198.67,0.00019178,2]
[365076082,1749444637146,-440.0,0.00019178,2]
[365076084,1749444637156,-430.0,0.00019178,2]
[365076086,1749444637166,-440.0,0.00019178,2]
[365076088,1749444637175,-461.41279938,0.00019178,2]
[365076090,1749444637185,-441.16089819,0.00019178,2]
[365076092,1749444637195,-443.03961644,0.00019178,2]
[365076094,1749444637205,-440.0,0.00019178,2]
[365076096,1749444637214,-432.51293503,0.00019178,2]
[365076098,1749444637224,-440.0,0.00019178,2]
[365076100,1749444637234,-430.0,0.00019178,2]
[365076102,1749444637243,-440.0,0.00019178,2]
[365076104,1749444637253,-440.0,0.00019178,2]
[365076106,1749444637262,-440.0,0.00019178,2]
[365076108,1749444637272,-506.05000303,0.00019178,2]
[365076110,1749444637282,-440.0,0.00019178,2]
[365076111,1749444637291,-440.0,0.00019178,2]
[365076112,1749444637300,-440.0,0.00019178,2]
[365076113,1749444637309,-440.0,0.00019178,2]
[365076114,1749444637318,-440.0,0.00019178,2]
[365076115,1749444637328,-440.0,0.00019178,2]
[365076116,1749444637337,-440.0,0.00019178,2]
[365076117,1749444637347,-440.0,0.00019178,2]
[365076118,1749444637356,-523.07,0.00019178,2]
[365076119,1749444637365,-2685.57,0.00019178,2]